bitfinex/quotes_SOLUSD_20250912
["timestamp","ask_amount","ask_price","bid_price","bid_amount"]
[1757691986525,1e-08,239.03,239.02,32.55700541]
[1757691986831,0.06,239.07,239.02,64.71700541]
[1757691987008,0.06,239.07,239.03,0.7]
[1757691987632,0.06,239.07,239.04,1.67311514]
[1757691987930,0.06,239.07,239.06,4.18305028]
[1757691988426,0.06,239.07,239.06,4.88305028]
[1757691988809,0.06,239.07,239.06,6.55609544]
[1757691989835,0.06,239.07,239.06,38.71609544]
[1757691991223,0.06,239.07,239.06,38.01609544]
[1757691991436,0.72,239.07,239.06,5.85609544]
[1757691991626,0.72,239.07,239.06,30.18305028]
[1757691992138,0.06,239.07,239.06,30.18305028]
[1757691994032,0.06,239.07,239.06,4.18305028]
[1757691994217,0.72,239.07,239.06,4.18305028]
[1757691994626,0.06,239.07,239.06,4.18305028]
[1757691994832,0.06,239.07,239.05,4.18322526]
[1757691995025,0.06,239.07,239.05,4.88322526]
[1757691995346,0.06,239.07,239.05,4.18322526]
[1757691996837,0.06,239.07,239.05,4.88322526]
[1757691997144,0.06,239.07,239.06,0.7]
[1757691997642,0.06,239.07,239.06,2.37297518]
[1757691998345,0.06,239.07,239.06,6.55602546]
[1757692000046,0.1,239.09,239.08,26.0]
[1757692000235,0.1,239.09,239.08,58.16]
[1757692000640,0.76,239.09,239.06,16.31365116]
[1757692000848,0.66,239.08,239.06,5.85602546]
[1757692001040,0.66,239.08,239.06,4.18305028]
[1757692001340,0.66,239.07,239.04,4.18328729]
[1757692001541,0.66,239.06,239.03,16.73297269]
[1757692001723,3.99619681,239.04,239.03,12.54941332]
[1757692002042,4.65619681,239.04,238.99,4.18427549]
[1757692002236,3.99619681,239.06,238.99,14.64496422]
[1757692002436,3.99619681,239.07,238.99,15.34496422]
[1757692002641,0.66,239.08,239.0,0.7]
[1757692002843,0.1,239.09,239.01,32.16]
[1757692003058,4.65619681,239.08,239.0,32.86]
[1757692003346,0.66,239.07,239.0,32.86]
[1757692003545,0.66,239.07,239.0,32.16]
[1757692003725,0.66,239.07,239.01,0.7]
[1757692004244,0.66,239.07,239.01,4.88376393]
[1757692004432,0.72,239.06,239.01,4.18376393]
[1757692005242,0.72,239.05,239.01,4.18376393]
[1757692005446,4.71619681,239.05,239.0,4.18408977]
[1757692005650,4.71619681,239.04,238.99,4.28256174]
[1757692005840,0.72,239.03,238.99,4.28256174]
[1757692006043,0.72,239.02,238.98,0.03]
[1757692006649,0.72,239.01,238.98,0.03]
[1757692007022,0.72,239.03,238.98,0.03]
[1757692007452,3.99619681,239.05,238.98,0.03]
[1757692007652,0.72,239.02,238.98,0.03]
[1757692008927,3.99619681,239.06,238.99,0.68]
[1757692009133,0.72,239.06,238.99,0.68]
[1757692010452,0.72,239.06,239.0,4.18410041]
[1757692013640,0.72,239.06,239.0,14.64435145]
[1757692015458,0.72,239.06,239.0,10.46025104]
[1757692015640,0.72,239.06,239.0,11.11025104]
[1757692016262,3.99619681,239.08,239.0,10.46025104]
[1757692016449,4.69619681,239.08,239.01,0.65]
[1757692017453,0.7,239.08,239.02,4.18375031]
[1757692017755,0.1,239.09,239.03,0.65]
[1757692019337,0.1,239.09,239.04,2.7945193]
[1757692019538,0.1,239.09,239.05,15.29128842]
[1757692019938,0.1,239.09,239.06,0.65]
[1757692020139,0.1,239.09,239.07,0.65]
[1757692020339,0.1,239.09,239.05,14.64128842]
[1757692020565,0.1,239.09,239.06,0.65]
[1757692020764,0.1,239.09,239.07,0.65]
[1757692020959,0.8,239.09,239.05,14.64128842]
[1757692021260,0.1,239.09,239.06,0.65]
[1757692021460,0.1,239.09,239.02,58.16]
[1757692021461,0.1,239.09,239.08,4.18270035]
[1757692021871,0.8,239.09,239.06,4.18291363]
[1757692022047,0.1,239.09,239.06,4.18291363]
[1757692022246,0.1,239.09,239.07,0.65]
[1757692022743,0.1,239.09,239.06,14.64053933]
[1757692023051,0.1,239.09,239.08,0.65]
[1757692023568,0.1,239.09,239.08,4.83270035]
[1757692023870,0.16,239.09,239.08,4.83270035]
[1757692024755,0.86,239.09,239.05,0.65]
[1757692025062,0.86,239.09,239.03,11.1086888]
[1757692025248,0.16,239.09,239.04,15.29190092]
[1757692025847,0.16,239.09,239.04,14.64190092]
[1757692026054,0.7,239.08,239.04,4.18340026]
[1757692026264,0.7,239.07,239.04,4.18340026]
[1757692026564,0.7,239.06,239.02,4.18375031]
[1757692027565,4.69619681,239.05,239.01,4.18392535]
[1757692027767,0.7,239.04,239.01,4.18392535]
[1757692028260,0.7,239.04,238.99,4.18410775]
[1757692028261,4.69619681,239.04,238.99,4.18410775]
[1757692028462,0.7,239.04,238.99,4.18410775]
[1757692028673,0.7,239.04,238.99,4.83410775]
[1757692028873,0.7,239.03,238.99,4.18410775]
[1757692029046,0.7,239.02,238.99,4.18410775]
[1757692029551,0.7,239.04,238.98,4.21445058]
[1757692029856,0.7,239.04,238.98,4.86445058]
[1757692030052,4.69619681,239.03,238.98,4.21445058]
[1757692030359,0.7,239.02,238.98,4.21445058]
[1757692030567,3.99619681,239.03,238.98,4.86445058]
[1757692031267,0.7,239.02,238.98,0.03]
[1757692031445,3.99619681,239.04,238.98,0.68]
[1757692031652,3.49504903,239.05,238.98,0.68]
[1757692031863,7.49124584,239.05,238.98,0.68]
[1757692032044,3.99619681,239.04,238.98,0.68]
[1757692032748,2.79504903,239.05,238.98,0.68]
[1757692033052,0.7,239.05,238.98,0.68]
[1757692033366,6.79124584,239.07,238.99,14.64496422]
[1757692033559,7.49124584,239.08,239.0,0.65]
[1757692033764,4.69619681,239.08,239.0,0.65]
[1757692033966,0.7,239.08,239.0,0.65]
[1757692035049,4.15619681,239.09,239.01,14.64373874]
[1757692035251,4.15619681,239.09,239.02,0.65]
[1757692035743,0.16,239.09,239.02,0.65]
[1757692037476,0.16,239.09,239.03,4.18357528]
[1757692037671,0.16,239.09,239.04,0.65]
[1757692038759,0.16,239.09,239.04,32.81]
[1757692038962,0.16,239.09,239.05,0.65]
[1757692039476,4.15619681,239.09,239.02,4.83375031]
[1757692039655,3.99619681,239.07,239.02,4.18375031]
[1757692039857,4.69619681,239.07,239.02,4.18375031]
[1757692040265,0.16,239.09,239.03,0.65]
[1757692040463,2.95504903,239.09,239.03,0.65]
[1757692040868,0.16,239.09,239.03,0.65]
[1757692041480,0.16,239.09,239.04,4.18340026]
[1757692041782,0.16,239.09,239.04,4.83340026]
[1757692042183,4.15619681,239.09,239.04,4.83340026]
[1757692043259,4.15619681,239.09,239.05,0.65]
[1757692043453,0.16,239.09,239.06,0.65]
[1757692043659,0.16,239.09,239.07,0.65]
[1757692044576,0.16,239.09,239.08,4.18270035]
[1757692044774,0.16,239.09,239.08,4.86270035]
[1757692046665,0.16,239.09,239.08,4.18270035]
[1757692047398,0.16,239.09,239.08,4.86270035]
[1757692047871,0.16,239.09,239.06,0.68]
[1757692048100,0.16,239.09,239.07,0.68]
[1757692049974,0.16,239.09,239.08,0.68]
[1757692050168,0.16,239.09,239.08,4.86270035]
[1757692053085,0.16,239.09,239.08,4.18270035]
[1757692053596,0.16,239.09,239.06,4.18288271]
[1757692053790,0.7,239.08,239.05,5.85633382]
[1757692053988,0.7,239.08,239.05,4.18321869]
[1757692054383,0.7,239.08,239.03,0.68]
[1757692054384,0.16,239.09,239.04,4.18340026]
[1757692054581,0.86,239.09,239.04,4.18340026]
[1757692055486,0.7,239.08,239.04,4.18340026]
[1757692055685,2.95504903,239.09,239.04,4.18340026]
[1757692055884,0.7,239.07,239.02,4.21358731]
[1757692056201,2.557004,239.06,239.02,0.03]
[1757692056383,3.257004,239.06,239.02,0.03]
[1757692056585,0.7,239.05,239.02,0.03]
[1757692056880,2.557004,239.06,239.02,0.03]
[1757692057092,0.7,239.06,239.02,0.03]
[1757692059205,5.35205303,239.08,239.03,0.68]
[1757692059505,2.717004,239.09,239.04,0.68]
[1757692059694,0.16,239.09,239.04,0.68]
[1757692060080,0.7,239.08,239.02,0.71]
[1757692060288,2.717004,239.09,239.02,0.71]
[1757692060498,0.16,239.09,239.02,0.71]
[1757692060694,2.717004,239.09,239.03,4.18357528]
[1757692061308,0.16,239.09,239.03,14.64251348]
[1757692061502,0.16,239.09,239.04,0.68]
[1757692062796,0.16,239.09,239.05,14.64128842]
[1757692063138,0.16,239.09,239.06,0.68]
[1757692064605,0.16,239.09,239.07,4.1828753]
[1757692066012,0.16,239.09,239.07,4.8428753]
[1757692069522,0.16,239.09,239.07,0.66]
[1757692069707,0.16,239.09,239.06,0.03]
[1757692070109,0.16,239.09,239.06,0.69]
[1757692070420,0.16,239.09,239.06,0.03]
[1757692071710,0.16,239.09,239.06,0.69]
[1757692073424,0.16,239.09,239.06,0.03]
[1757692073803,0.16,239.09,239.06,0.74]
[1757692074522,0.16,239.09,239.07,4.1828753]
[1757692077515,0.65,239.08,239.06,0.03]
[1757692077823,0.16,239.09,239.06,0.03]
[1757692078507,0.16,239.09,239.06,4.21296655]
[1757692079723,0.16,239.09,239.06,0.74]
[1757692079928,0.16,239.09,239.06,0.03]
[1757692080936,0.16,239.09,239.06,0.74]
[1757692081235,0.16,239.09,239.07,4.1828753]
[1757692081734,0.16,239.09,239.08,0.71]
[1757692083447,0.16,239.09,239.08,4.89270035]
[1757692084510,0.16,239.09,239.08,30.89270035]
[1757692084711,0.16,239.09,239.08,63.03270035]
[1757692090337,0.16,239.09,239.08,64.70553559]
[1757692091639,0.16,239.09,239.08,32.56553559]
[1757692091813,0.16,239.09,239.08,64.70553559]
[1757692094530,0.16,239.09,239.08,63.99553559]
[1757692094729,0.16,239.09,239.08,62.32270035]
[1757692095039,0.81,239.09,239.08,4.18270035]
[1757692095239,0.16,239.09,239.08,4.18270035]
[1757692095829,0.81,239.09,239.08,4.18270035]
[1757692096025,0.16,239.09,239.08,4.18270035]
[1757692096840,0.81,239.09,239.07,80.93]
[1757692097017,0.65,239.08,239.07,80.93]
[1757692097617,0.65,239.08,239.07,85.1128753]
[1757692097845,0.16,239.09,239.07,85.1128753]
[1757692098031,0.81,239.09,239.07,4.2128753]
[1757692098414,0.16,239.09,239.07,4.2128753]
[1757692098616,0.65,239.08,239.07,0.03]
[1757692100538,0.16,239.09,239.07,0.03]
[1757692100730,0.81,239.09,239.07,0.03]
[1757692101324,0.65,239.08,239.07,0.03]
[1757692102346,0.16,239.09,239.07,0.03]
[1757692102549,0.81,239.09,239.07,0.03]
[1757692103325,0.65,239.08,239.07,0.03]
[1757692104137,0.16,239.09,239.07,0.03]
[1757692104338,0.86,239.09,239.07,0.03]
[1757692105629,0.16,239.09,239.07,0.03]
[1757692105831,0.16,239.09,239.07,0.7]
[1757692106046,0.16,239.09,239.08,4.18270035]
[1757692106532,0.86,239.09,239.07,0.03]
[1757692106841,0.16,239.09,239.07,0.03]
[1757692108854,0.16,239.09,239.08,0.67]
[1757692110261,0.16,239.09,239.08,4.85270035]
[1757692110735,2.79688206,239.16,239.08,15.30945122]
[1757692110939,2.79688206,239.18,239.11,26.0]
[1757692111129,2.79688206,239.17,239.12,0.67]
[1757692111454,2.79688206,239.18,239.12,0.67]
[1757692111948,2.79688206,239.18,239.11,26.0]
[1757692112146,2.79688206,239.18,239.12,4.18200066]
[1757692112659,3.39688206,239.18,239.12,4.18200066]
[1757692113643,3.39688206,239.18,239.12,0.67]
[1757692113848,2.79688206,239.18,239.12,0.67]
[1757692114456,0.6,239.18,239.12,0.67]
[1757692115862,0.6,239.18,239.13,4.18182578]
[1757692116253,0.6,239.17,239.13,4.18182578]
[1757692116853,2.89688206,239.19,239.11,10.45543891]
[1757692117039,3.49688206,239.19,239.12,0.7]
[1757692117455,0.7,239.19,239.12,0.7]
[1757692117846,3.49688206,239.19,239.12,0.7]
[1757692118337,0.7,239.19,239.12,0.7]
[1757692118853,0.7,239.19,239.13,4.18182578]
[1757692119042,0.1,239.19,239.14,0.7]
[1757692119246,0.1,239.19,239.13,14.63639024]
[1757692119554,0.1,239.19,239.15,0.7]
[1757692120146,0.1,239.19,239.16,0.7]
[1757692120342,0.1,239.19,239.17,0.7]
[1757692120952,0.06,239.18,239.17,0.7]
[1757692121853,0.06,239.18,239.13,14.63639024]
[1757692122160,0.06,239.18,239.15,0.7]
[1757692122653,0.06,239.18,239.13,4.18182578]
[1757692122839,0.06,239.18,239.15,4.18147606]
[1757692123659,0.06,239.18,239.16,0.7]
[1757692124238,0.06,239.18,239.15,4.18147606]
[1757692124437,0.06,239.18,239.16,0.7]
[1757692124732,0.06,239.18,239.15,0.7]
[1757692124935,0.06,239.18,239.16,0.7]
[1757692125340,0.06,239.18,239.14,0.7]
[1757692125535,0.06,239.18,239.15,0.7]
[1757692126441,0.06,239.18,239.13,4.18182578]
[1757692126646,0.6,239.17,239.16,4.0]
[1757692126848,4.78112639,239.17,239.16,4.0]
[1757692127350,7.57800845,239.17,239.16,4.0]
[1757692128766,11.5730853,239.17,239.16,4.0]
[1757692131051,7.57800845,239.17,239.16,4.0]
[1757692131356,11.5730853,239.17,239.16,4.0]
[1757692131559,43.6930853,239.17,239.16,4.0]
[1757692131862,39.69800845,239.17,239.16,4.0]
[1757692132043,43.6930853,239.17,239.16,4.0]
[1757692132542,10.9730853,239.17,239.16,4.0]
[1757692132743,39.09800845,239.17,239.16,4.0]
[1757692133648,43.6930853,239.17,239.16,4.0]
[1757692141478,43.7530853,239.17,239.16,4.0]
[1757692141866,39.17800845,239.17,239.16,4.0]
[1757692142167,43.1730853,239.17,239.16,4.0]
[1757692143265,11.0330853,239.17,239.16,4.0]
[1757692143463,7.03800845,239.17,239.16,4.71]
[1757692143658,39.17800845,239.17,239.16,4.71]
[1757692145774,43.1730853,239.17,239.16,4.0]
[1757692146880,40.37620324,239.17,239.16,4.0]
[1757692147182,43.17461595,239.17,239.16,4.0]
[1757692147677,43.17461595,239.17,239.16,4.71]
[1757692147865,43.17461595,239.17,239.16,4.0]
[1757692148380,43.77461595,239.17,239.16,4.0]
[1757692148675,43.17461595,239.17,239.16,4.0]
[1757692149466,11.03461595,239.17,239.16,4.71]
[1757692149668,39.1795391,239.17,239.16,4.71]
[1757692150766,2.85841271,239.17,239.16,4.71]
[1757692150969,32.2,239.17,239.16,4.71]
[1757692151492,0.06,239.17,239.16,4.71]
[1757692151672,0.06,239.17,239.16,8.89130122]
[1757692157090,0.06,239.17,239.16,4.71]
[1757692159290,0.06,239.17,239.16,8.89130122]
[1757692162676,0.06,239.17,239.16,10.56371681]
[1757692170403,0.06,239.18,239.16,91.46371681]
[1757692170596,0.06,239.18,239.17,0.66]
[1757692170998,1e-08,239.18,239.17,0.66]
[1757692171694,1e-08,239.18,239.17,13.20101959]
[1757692172403,1e-08,239.18,239.17,17.38214598]
[1757692172910,1e-08,239.18,239.17,49.50214598]
[1757692174000,1e-08,239.18,239.17,130.40214598]
[1757692179013,1e-08,239.19,239.17,130.40214598]
[1757692179309,0.6,239.28,239.2,26.0]
[1757692179520,0.6,239.28,239.21,26.66]
[1757692179690,0.6,239.28,239.22,32.78]
[1757692180385,0.6,239.28,239.23,14.63027211]
[1757692181610,0.6,239.27,239.23,14.63027211]
[1757692181916,0.6,239.26,239.23,4.18007774]
[1757692182290,0.6,239.26,239.22,4.18025248]
[1757692182489,0.6,239.26,239.22,4.84025248]
[1757692182708,0.06,239.28,239.22,4.84025248]
[1757692183016,0.66,239.28,239.22,15.29088369]
[1757692186128,0.06,239.28,239.24,4.17990302]
[1757692186326,0.66,239.28,239.24,4.17990302]
[1757692187904,0.06,239.28,239.25,0.71]
[1757692188102,0.06,239.28,239.22,14.63088369]
[1757692188621,0.06,239.28,239.23,0.71]
[1757692189422,0.06,239.28,239.22,46.73088369]
[1757692189621,0.66,239.28,239.23,0.71]
[1757692190215,0.66,239.28,239.24,4.17990302]
[1757692190519,0.06,239.28,239.25,0.71]
[1757692191716,0.06,239.28,239.26,4.17955362]
[1757692192398,0.06,239.28,239.24,11.15975756]
[1757692192399,0.06,239.28,239.24,4.88975531]
[1757692192596,0.06,239.28,239.25,0.71]
[1757692193119,0.06,239.28,239.26,0.71]
[1757692193712,0.06,239.28,239.27,4.17937894]
[1757692194111,0.06,239.28,239.27,4.89937894]
[1757692195423,0.06,239.28,239.26,4.17955362]
[1757692195925,0.06,239.28,239.26,4.89955362]
[1757692196623,0.06,239.28,239.27,4.89937894]
[1757692197203,0.06,239.28,239.27,4.17937894]
[1757692197400,0.06,239.28,239.27,4.89937894]
[1757692200708,0.06,239.28,239.27,4.17937894]
[1757692201310,0.06,239.28,239.27,4.89937894]
[1757692201902,0.06,239.28,239.27,4.17937894]
[1757692202334,0.06,239.28,239.25,4.0]
[1757692202624,0.06,239.28,239.25,8.17969784]
[1757692202802,0.06,239.28,239.25,8.89969784]
[1757692203007,0.06,239.28,239.26,0.72]
[1757692203838,0.06,239.28,239.27,0.72]
[1757692204709,0.06,239.28,239.27,4.89937894]
[1757692205312,0.06,239.28,239.27,7.69836614]
[1757692206837,0.06,239.28,239.27,6.97836614]
[1757692207014,0.06,239.28,239.27,7.69836614]
[1757692209348,0.06,239.28,239.27,4.17937894]
[1757692210527,0.06,239.28,239.27,4.89937894]
[1757692215648,0.06,239.28,239.27,7.69836614]
[1757692216239,0.06,239.28,239.27,39.79836614]
[1757692216645,0.06,239.28,239.27,6.97836614]
[1757692217018,0.06,239.28,239.27,4.17937894]
[1757692217223,0.06,239.28,239.27,4.89937894]
[1757692217424,0.06,239.28,239.27,8.29836614]
[1757692217716,0.06,239.28,239.27,4.1189872]
[1757692217916,0.06,239.28,239.27,4.89937894]
[1757692219229,0.06,239.28,239.27,4.17937894]
[1757692219528,0.06,239.28,239.27,4.89937894]
[1757692219936,0.06,239.28,239.27,8.29836614]
[1757692224528,1e-08,239.28,239.27,8.29836614]
[1757692227337,0.1,239.29,239.27,8.29836614]
[1757692227548,0.1,239.29,239.28,32.77]
[1757692227949,1e-08,239.29,239.28,32.77]
[1757692228433,1e-08,239.29,239.28,36.94920427]
[1757692228754,0.1,239.39,239.31,26.0]
[1757692228935,0.1,239.39,239.32,32.08]
[1757692229252,0.1,239.39,239.32,32.77]
[1757692229448,0.1,239.39,239.33,0.69]
[1757692229647,0.1,239.39,239.34,32.08]
[1757692229857,0.1,239.39,239.35,0.69]
[1757692230028,0.1,239.39,239.36,32.77]
[1757692230453,0.1,239.39,239.37,4.17763295]
[1757692230633,0.1,239.39,239.37,6.97662015]
[1757692230634,0.7,239.39,239.37,6.97662015]
[1757692230949,0.1,239.39,239.37,6.97662015]
[1757692231953,0.7,239.39,239.37,6.97662015]
[1757692232156,0.1,239.39,239.37,6.97662015]
[1757692232524,0.1,239.39,239.37,7.66662015]
[1757692232725,0.1,239.39,239.37,6.97662015]
[1757692233354,0.1,239.39,239.37,7.66662015]
[1757692233545,0.1,239.39,239.37,6.97662015]
[1757692233856,0.1,239.39,239.37,7.66662015]
[1757692234152,0.1,239.39,239.38,32.77]
[1757692235227,0.1,239.39,239.38,36.94745843]
[1757692236254,0.1,239.39,239.38,4.86745843]
[1757692236558,0.1,239.39,239.38,37.06745843]
[1757692237530,0.1,239.39,239.38,4.86745843]
[1757692238051,0.1,239.39,239.38,37.04745843]
[1757692239959,0.1,239.39,239.38,49.57852504]
[1757692242235,0.1,239.49,239.41,26.0]
[1757692242440,0.1,239.49,239.42,32.18]
[1757692242651,0.1,239.49,239.43,14.61805119]
[1757692242849,0.1,239.49,239.44,32.18]
[1757692243137,0.6,239.48,239.43,4.17658605]
[1757692243354,0.6,239.47,239.4,4.17710944]
[1757692245053,0.6,239.46,239.4,6.96778989]
[1757692245253,0.1,239.49,239.41,0.71]
[1757692245454,0.1,239.49,239.44,26.0]
[1757692245767,0.1,239.49,239.45,0.71]
[1757692245939,0.1,239.49,239.46,0.71]
[1757692246134,0.1,239.49,239.43,58.91]
[1757692246359,0.1,239.49,239.45,0.71]
[1757692246657,0.1,239.49,239.47,4.17588842]
[1757692246836,0.1,239.49,239.46,9.05197288]
[1757692247035,0.1,239.49,239.46,4.17604475]
[1757692247253,0.1,239.49,239.47,0.71]
[1757692247944,0.1,239.49,239.48,2.38032049]
[1757692248777,0.1,239.49,239.48,6.55603453]
[1757692250455,0.1,239.49,239.48,38.77603453]
[1757692250780,0.1,239.49,239.48,1.67032049]
[1757692251171,0.1,239.49,239.46,4.1760628]
[1757692251352,0.1,239.49,239.46,30.8860628]
[1757692251543,0.1,239.49,239.47,0.71]
[1757692251957,0.1,239.49,239.46,40.61621981]
[1757692252267,0.1,239.49,239.48,1.67018101]
[1757692252564,0.1,239.49,239.48,5.84589505]
[1757692253947,0.1,239.49,239.48,1.67018101]
[1757692254164,0.1,239.49,239.46,4.17596625]
[1757692254464,0.1,239.49,239.47,0.7]
[1757692254863,0.1,239.49,239.48,0.7]
[1757692255163,0.1,239.49,239.46,4.17596625]
[1757692255365,0.1,239.49,239.47,3.98620207]
[1757692255565,0.7,239.49,239.47,3.98620207]
[1757692255944,0.1,239.49,239.44,26.0]
[1757692256265,0.6,239.48,239.45,4.1751787]
[1757692256466,0.6,239.47,239.45,4.1751787]
[1757692256652,30.58620207,239.46,239.45,4.0751787]
[1757692256852,26.0,239.43,239.3,0.7]
[1757692257052,26.0,239.43,239.33,4.1751787]
[1757692257053,3.98620207,239.39,239.33,4.1751787]
[1757692257262,4.48620207,239.39,239.3,0.7]
[1757692257566,3.98620207,239.33,239.29,0.03]
[1757692257868,26.0,239.37,239.31,12.53473165]
[1757692258079,26.0,239.33,239.31,12.53473165]
[1757692258369,0.5,239.32,239.31,12.53473165]
[1757692258670,4.17972177,239.38,239.31,0.7]
[1757692258858,26.0,239.38,239.31,0.7]
[1757692259248,3.98620207,239.39,239.31,4.87866975]
[1757692259448,0.5,239.4,239.31,4.17866975]
[1757692259753,0.5,239.4,239.32,0.7]
[1757692259955,3.98620207,239.39,239.32,0.7]
[1757692260748,3.98620207,239.39,239.32,4.8783434]
[1757692260970,0.5,239.4,239.32,4.8783434]
[1757692261171,0.5,239.4,239.33,0.7]
[1757692261351,4.48620207,239.4,239.33,0.7]
[1757692261972,3.98620207,239.4,239.33,0.7]
[1757692262273,3.98620207,239.4,239.34,4.17815659]
[1757692265790,3.98620207,239.43,239.35,0.7]
[1757692266155,0.5,239.47,239.35,0.7]
[1757692266350,0.6,239.49,239.38,14.62110451]
[1757692266550,0.1,239.49,239.41,26.0]
[1757692266761,0.1,239.49,239.42,0.7]
[1757692267668,0.1,239.49,239.42,26.7]
[1757692267860,0.1,239.49,239.43,4.87658605]
[1757692268172,0.1,239.49,239.43,15.31805119]
[1757692268357,0.1,239.49,239.44,0.7]
[1757692268551,0.1,239.49,239.43,14.61805119]
[1757692268757,0.1,239.49,239.44,0.7]
[1757692269976,0.1,239.49,239.45,14.61683023]
[1757692270157,0.1,239.49,239.46,0.7]
[1757692270757,0.1,239.49,239.48,26.0]
[1757692270962,0.1,239.49,239.48,26.7]
[1757692271860,0.1,239.49,239.48,30.87571404]
[1757692273473,0.1,239.49,239.48,4.17571404]
[1757692273859,0.1,239.49,239.47,4.17588842]
[1757692274073,0.1,239.49,239.44,4.17641162]
[1757692274461,0.1,239.49,239.39,10.44303289]
[1757692274462,4.58620207,239.49,239.39,10.44303289]
[1757692274659,4.58620207,239.49,239.4,0.7]
[1757692274858,3.98620207,239.47,239.39,10.44303289]
[1757692275063,3.98620207,239.45,239.39,4.17728392]
[1757692275270,3.98620207,239.45,239.35,10.44458905]
[1757692275271,4.48620207,239.45,239.36,0.7]
[1757692275886,4.48620207,239.45,239.37,4.17763295]
[1757692276465,3.98620207,239.43,239.37,4.17763295]
[1757692276665,3.98620207,239.39,239.33,12.5305432]
[1757692277275,26.0,239.47,239.34,0.7]
[1757692277478,26.0,239.46,239.34,0.7]
[1757692277888,0.5,239.47,239.37,14.62171533]
[1757692278063,28.89661122,239.49,239.38,0.7]
[1757692278390,26.1,239.49,239.38,0.7]
[1757692278890,0.1,239.49,239.4,26.0]
[1757692279084,0.1,239.49,239.41,0.7]
[1757692279388,0.1,239.49,239.42,0.41767605]
[1757692279591,0.1,239.49,239.43,0.7]
[1757692279886,0.1,239.49,239.47,4.17588842]
[1757692280088,0.1,239.49,239.48,0.7]
[1757692280273,0.1,239.49,239.47,36.69588842]
[1757692280274,0.1,239.49,239.47,4.17588842]
[1757692280471,0.1,239.49,239.48,26.0]
[1757692280665,0.1,239.49,239.47,4.87588842]
[1757692281389,0.1,239.49,239.43,55.0724106]
[1757692281390,0.1,239.49,239.44,0.7]
[1757692281580,0.6,239.49,239.43,1.66976268]
[1757692281773,0.1,239.49,239.42,26.0]
[1757692282287,0.1,239.49,239.41,0.7]
[1757692282870,0.1,239.49,239.42,4.17660643]
[1757692283095,0.1,239.49,239.43,0.7]
[1757692283870,0.1,239.49,239.28,20.21857508]
[1757692283871,0.6,239.49,239.4,4.17700212]
[1757692284181,0.1,239.49,239.42,4.1767605]
[1757692285794,0.1,239.49,239.42,0.68]
[1757692286591,4.27555153,239.49,239.42,0.68]
[1757692286791,0.1,239.49,239.42,0.68]
[1757692287696,0.1,239.49,239.43,4.17658605]
[1757692288590,4.77560315,239.49,239.39,0.68]
[1757692289174,0.1,239.49,239.39,0.68]
[1757692289691,0.1,239.49,239.4,14.61988304]
[1757692289895,0.1,239.49,239.41,0.68]
[1757692290196,0.5,239.48,239.4,4.17710944]
[1757692290490,0.5,239.48,239.39,4.85725933]